Cogmind - Beta 15 *** ADVENTURER MODE // 2025.08.24 @ 16:33:10 // AFD2020/Player2 Player: bugsniper Result: Self-destructed Performance ------------- Evolutions (0) 0 Regions Visited (4) 800 Robots Destroyed (37) 185 Value Destroyed (823) 823 Prototype IDs (4) 80 Alien Tech Used (0) 0 Bonus (259) 259 TOTAL SCORE: 2147 Bonus ------- Follower Combat Kills 123 Registered with UFD 300 Friendly Fire -164 Cogmind --------- Core Integrity 12/250 Matter 270/300 Energy 290/290 System Corruption 0% Temperature Cool (0) Movement Rolling (70) Location -9/Scraptown Parts ------- > --- POWER (1) -------- Improved Deuterium Engine > --- PROPULSION (2) --- Overtuned Huge Scrapsphere > --- UTILITY (2) ------ Scrap Suit > --- WEAPON (2) ------- (None) > --- INVENTORY (5) ---- Advanced Sensor Array Hacking Suite Rocket Launcher DRS Beacon (Ready) Peak State ------------ > --- POWER ------------ Improved Deuterium Engine > --- PROPULSION ------- Overtuned Huge Scrapsphere > --- UTILITY ---------- Scrap Suit > --- WEAPON ----------- Light Cannon Battle Cannon > --- INVENTORY -------- Advanced Sensor Array Hacking Suite Rocket Launcher DRS Beacon [Rating: 28] Favorites ----------- Power Light Ion Engine Engine Light Ion Engine Propulsion Aluminum Leg Treads Armored Treads Leg Aluminum Leg Wheel Compact Wheel Utility Small Storage Unit Device Disposable Heat Sink Storage Small Storage Unit Protection Makeshift Kinetic Plating Weapon Light Cannon Energy Gun EM Shotgun Ballistic Gun Light Assault Rifle Ballistic Cannon Light Cannon Launcher Grenade Launcher Slashing Weapon Makeshift Axe Build | -11 -10 -10 -9 -9 ------- Run | Yrd Mat Sub Rec Scr Slots Evolved . | . . . . . Power . | . . . . . Propulsion . | . . . . . Utility . | . . . . . Weapon . | . . . . . Parts Attached 45 | . 5 23 4 13 Power 10 | . . 6 1 3 Engine 10 | . . 6 1 3 Core . | . . . . . Reactor . | . . . . . Propulsion 14 | . . 6 3 5 Treads 3 | . . . . 3 Leg 3 | . . 2 . 1 Wheel 8 | . . 4 3 1 Hover . | . . . . . Flight . | . . . . . Utility 7 | . . 2 . 5 Device 3 | . . 1 . 2 Storage 2 | . . . . 2 Processor . | . . . . . Hackware . | . . . . . Protection 2 | . . 1 . 1 Artifact . | . . . . . Weapon 14 | . 5 9 . . Energy Gun 5 | . 3 2 . . Energy Cannon . | . . . . . Ballistic Gun 3 | . 2 1 . . Ballistic Cannon 4 | . . 4 . . Launcher 1 | . . 1 . . Special Weapon . | . . . . . Impact Weapon . | . . . . . Slashing Weapon 1 | . . 1 . . Piercing Weapon . | . . . . . Special Melee Weapon . | . . . . . Unidentified Prototypes 1 | . 1 . . . Parts Lost 11 | . . 11 . . Power 2 | . . 2 . . Propulsion 3 | . . 3 . . Utility 1 | . . 1 . . Weapon 5 | . . 5 . . Highest Loss Streak 2 | . . 2 . . To Critical Strikes . | . . . . . Average Backups 4 | . 7 4 3 5 Power . | . 1 . . . Propulsion . | . 2 1 1 . Utility 1 | . . . 1 2 Weapon 2 | . 4 2 1 2 Tool/Special . | . . . . . Unused Backups 10 | . . 3 . 7 Power . | . . . . . Propulsion 1 | . . . . 1 Utility 4 | . . . . 4 Weapon 5 | . . 3 . 2 Tool/Special . | . . . . . Average Slot Usage (%) 95 | . 84 95 92 98 Engine 13 | . 14 13 13 13 Treads 6 | . . . . 19 Leg 11 | . 28 15 8 . Wheel 7 | . . 8 13 7 Device 8 | . . 6 14 13 Storage 13 | . 14 14 14 13 Protection 3 | . . 7 . . Energy Gun 4 | . 26 3 . . Ballistic Cannon 22 | . . 21 28 27 Peak Build Rating 28 | . 9 24 14 28 Average Rating 14 | . 8 16 13 14 On Entrance 9 | 6 6 8 13 14 Naked Turns . | . . . . . Heaviest Build 34 | 10 14 23 17 34 Greatest Support 42 | 20 20 30 32 42 Greatest Overweight (x) 2 | . . 2 1 . Average Overweight (x) . | . . . . . Largest Inventory Capacity 15 | . 8 8 8 15 Average Capacity 8 | . 8 8 8 9 Most Carried 8 | . 8 8 8 8 Average Carried 7 | . 7 7 7 7 Final Capacity 8 | 8 8 8 8 5 Final Carried 8 | 6 8 7 8 4 Class Distribution -------------------- 66% | Mutant 21% | Scavenger-Mutant 11% | Derelict-Mutant Dominant Class ---------------- Mutant | -10/Materials Mutant | -10/Subcaves Scavenger-Mutant | -9/Recycling Mutant | -9/Scraptown Resources | -11 -10 -10 -9 -9 ----------- Run | Yrd Mat Sub Rec Scr Matter Collected 1668 | 200 57 1042 245 124 Remotely . | . . . . . Salvage Created 1018 | . 165 444 409 . Parts 64 | . 18 36 10 . Haulers Intercepted . | . . . . . Recyclers Shooed 3 | . 1 . 2 . Parts Field Recycled . | . . . . . Retrieved Matter . | . . . . . Parts Self-Destructed 15 | . . 15 . . Prevented 3 | . . 3 . . Kills | -11 -10 -10 -9 -9 ------- Run | Yrd Mat Sub Rec Scr Combat Hostiles Destroyed 26 | . 5 21 . . Guns 9 | . 5 4 . . Cannons 14 | . . 14 . . AOE 2 | . . 2 . . Classes Destroyed 8 | . 3 4 1 . Worker 2 | . 2 . . . Recycler 6 | . . . 6 . Turret 1 | . . 1 . . Watcher 2 | . 2 . . . Swarmer 11 | . 5 6 . . Grunt 2 | . . 2 . . Sentry 1 | . . 1 . . Subdweller 12 | . . 12 . . Best Kill Streak 5 | . 5 3 4 . Combat Bots Only 5 | . 5 3 . . Max Kills in Single Turn 2 | . 2 1 1 . Gunslinging . | . . . . . Exploded 1 | . . 1 . . Melee . | . . . . . Uniques/NPCs Destroyed . | . . . . . Combat | -11 -10 -10 -9 -9 -------- Run | Yrd Mat Sub Rec Scr Hostile Shots Fired 200 | . 9 191 . . Missed 66 | . 3 63 . . Hits 134 | . 6 128 . . Projectile 134 | . 6 128 . . AOE 2 | . . 2 . . Critical Strikes 1 | . . 1 . . Damage Taken 1492 | . 40 1436 16 . Core 221 | . 8 213 . . Absorbed by Shields . | . . . . . Ignored by Resistances 482 | . 14 464 4 . Core Remaining (%) 100 | 100 . . . . Volleys Fired 94 | . 11 72 11 . Largest 2 | . 2 2 2 . Hottest 90 | . 90 90 63 . Shots Fired 185 | . 22 140 23 . Gun 51 | . 22 29 . . Cannon 127 | . . 104 23 . Launcher 7 | . . 7 . . Special . | . . . . . Kinetic 128 | . 1 104 23 . Thermal 1 | . 1 . . . Explosive 7 | . . 7 . . Electromagnetic 49 | . 20 29 . . Robot Hit Streak 32 | . 9 32 7 . Robot Miss Streak 5 | . 3 5 1 . Penetration Max . | . . . . . Secondary Targets 2 | . 1 1 . . Max Gunslinging Chain 1 | . 1 1 . . Shots Hit Robots 137 | . 16 106 15 . Core Hits 55 | . 12 37 6 . Critical Kills . | . . . . . Critical Parts Destroyed . | . . . . . Critical Strikes 3 | . . 2 1 . Blast 3 | . . 2 1 . Melee Attacks 22 | . . 22 . . Impact . | . . . . . Slashing 22 | . . 22 . . Piercing . | . . . . . Sneak Attacks . | . . . . . Combat Hostiles . | . . . . . Follow-up Attacks . | . . . . . Damage Inflicted 2852 | . 230 2310 312 . Guns 562 | . 224 338 . . Cannons 1790 | . . 1478 312 . Explosions 494 | . . 494 . . Melee . | . . . . . Ramming 6 | . 6 . . . Kinetic 1799 | . 9 1478 312 . Thermal 11 | . 11 . . . Explosive 494 | . . 494 . . Electromagnetic 542 | . 204 338 . . Impact . | . . . . . Slashing . | . . . . . Piercing . | . . . . . Highest Corruption 5 | . 5 5 5 . Average Corruption 5 | . 5 5 5 . Corruption Purged . | . . . . . Corruption Blocked . | . . . . . Effects 125 | . 17 90 18 . Message Errors 36 | . 5 28 3 . Matter Fused 30 | . 1 21 8 . Heat Flow Errors 18 | . 3 11 4 . Energy Discharges 11 | . 1 10 . . Parts Fused 1 | . 1 . . . Data Loss (minor) 18 | . 3 14 1 . Data Loss (major) 2 | . 1 1 . . Misfires 5 | . 1 3 1 . Alerts 3 | . . 2 1 . Weapon Failures 1 | . 1 . . . Overload Shots . | . . . . . Overflow Damage 44 | . . 31 13 . Projectiles 30 | . . 17 13 . Explosions 14 | . . 14 . . Melee . | . . . . . Knockbacks 14 | . . 12 2 . Impact . | . . . . . Kinetic 14 | . . 12 2 . Secondary . | . . . . . Self-Inflicted Damage 57 | . . 57 . . Shots 3 | . . 3 . . Rammed . | . . . . . Targets Rammed 2 | . 2 . . . Kicked 2 | . 2 . . . Crushed . | . . . . . Highest Temperature 274 | . 274 214 205 . Average Temperature 74 | . 63 82 91 . Received Heat Transfer 531 | . . 531 . . Siege Activations . | . . . . . Martial Activations . | . . . . . Shielding Activations . | . . . . . Robots Disrupted . | . . . . . Combat Hostiles . | . . . . . Robots Corrupted 1 | . . 1 . . Combat Hostiles 1 | . . 1 . . Parts Fried 3 | . 1 2 . . Impact Corruptions . | . . . . . Robots Melted . | . . . . . Combat Hostiles . | . . . . . Parts Melted . | . . . . . Heat Transferred 25 | . 25 . . . Parts Sabotaged . | . . . . . Parts Stolen . | . . . . . Parts Stripped . | . . . . . Power Chain Reactions . | . . . . . Alert | -11 -10 -10 -9 -9 ------- Run | Yrd Mat Sub Rec Scr Maximum Alert Level . | . . . . . Low Security (%) 100 | . 100 . 100 . Level 1 . | . . . . . Level 2 . | . . . . . Level 3 . | . . . . . Level 4 . | . . . . . Level 5 . | . . . . . High Security . | . . . . . Max Security . | . . . . . Peak Influence 143 | . 143 . 15 . Initial . | . . . . . Average 20 | . 32 . . . Influence Increases 793 | . 285 473 35 . Destroy 0b10 Robot/C 440 | . 180 260 . . Destroy 0b10 Robot/NC 55 | . 25 . 30 . Destroy Leader 54 | . 34 20 . . Allied During Kill 47 | . 19 28 . . Successful Hack 8 | . 4 . 4 . Disable Machine 18 | . 18 . . . Destroy Structure 6 | . 5 . 1 . Lose Combat Pursuer 165 | . . 165 . . Influence Decreases 793 | . 212 546 35 . Entered New Map 41 | . . 41 . . Time Decay 702 | . 212 455 35 . Lost Part 50 | . . 50 . . Squads Dispatched . | . . . . . Investigation . | . . . . . Extermination . | . . . . . Reinforcement . | . . . . . Assault . | . . . . . Garrison . | . . . . . Intercept . | . . . . . Searches Triggered . | . . . . . Construction Impeded . | . . . . . Haulers Reinforced . | . . . . . Active Scanning Responses . | . . . . . Cargo Convoy Interrupts . | . . . . . Stealth | -11 -10 -10 -9 -9 --------- Run | Yrd Mat Sub Rec Scr Distress Signals . | . . . . . Communications Jammed . | . . . . . Distress Signals . | . . . . . Times Spotted 45 | . 10 35 . . Peak Tracking Total 6 | . 3 6 . . Tactical Retreats 2 | . . 2 . . Traps | -11 -10 -10 -9 -9 ------- Run | Yrd Mat Sub Rec Scr Traps Triggered 2 | . 1 1 . . Indirectly . | . . . . . Trap Hack Attempts . | . . . . . Triggered . | . . . . . Disarmed . | . . . . . Reprogrammed . | . . . . . Reused . | . . . . . Traps Extracted . | . . . . . Installed . | . . . . . Triggered . | . . . . . Machines | -11 -10 -10 -9 -9 ---------- Run | Yrd Mat Sub Rec Scr Machines Disabled 2 | . 2 . . . Max in Single Turn . | . . . . . Machines Repaired . | . . . . . Machines Dismantled . | . . . . . Machines Sabotaged . | . . . . . Overloaded Fab Kills . | . . . . . Hacking | -11 -10 -10 -9 -9 --------- Run | Yrd Mat Sub Rec Scr Machines Accessed 7 | . 4 . 2 1 Terminals 4 | . 3 . 1 . Fabricators . | . . . . . Repair Stations . | . . . . . Recycling Units 2 | . 1 . 1 . Scanalyzers . | . . . . . Garrison Access . | . . . . . Total Hacks 11 | . 6 . 2 3 Successful 8 | . 3 . 2 3 Failed 3 | . 3 . . . Catastrophic . | . . . . . Database Lockouts . | . . . . . Manual 2 | . 2 . . . Terminals 6 | . 5 . 1 . Fabricators . | . . . . . Repair Stations . | . . . . . Recycling Units 2 | . 1 . 1 . Scanalyzers . | . . . . . Garrison Access . | . . . . . Terminal Hacks 6 | . 2 . 1 3 Record 3 | . . . . 3 Prototype ID Bank 1 | . 1 . . . Emergency Access Points 1 | . 1 . . . Zone Layout 1 | . . . 1 . Fabricator Hacks . | . . . . . Repair Station Hacks . | . . . . . Recycling Unit Hacks 2 | . 1 . 1 . Retrieve Components 2 | . 1 . 1 . Scanalyzer . | . . . . . Garrison Access Hacks . | . . . . . Unauthorized Hacks . | . . . . . Terminals . | . . . . . Fabricators . | . . . . . Repair Stations . | . . . . . Recycling Units . | . . . . . Scanalyzers . | . . . . . Garrison Access . | . . . . . Data Cores Recovered . | . . . . . Used . | . . . . . Hacking Detections 1 | . 1 . . . Full Trace Events . | . . . . . Feedback Events . | . . . . . Feedback Blocked . | . . . . . Robot Schematics Acquired . | . . . . . Robots Built . | . . . . . Authchips . | . . . . . Time . | . . . . . Total Robot Build Rating . | . . . . . Part Schematics Acquired . | . . . . . Parts Built . | . . . . . Authchips . | . . . . . Time . | . . . . . Total Part Build Rating . | . . . . . Parts Repaired . | . . . . . Time . | . . . . . Parts Recycled . | . . . . . Recycled Matter . | . . . . . Retrieved Matter . | . . . . . Retrieved Components 3 | . 1 . 2 . Parts Scanalyzed . | . . . . . Part Schematics Acquired . | . . . . . Parts Damaged . | . . . . . Bothacking | -11 -10 -10 -9 -9 ------------ Run | Yrd Mat Sub Rec Scr Used RIF Installer . | . . . . . Robots Hacked . | . . . . . Non-combat . | . . . . . Combat . | . . . . . Robot Hacks Applied . | . . . . . Relay Couplers Released . | . . . . . Fabnet Peak Effective % . | . . . . . Robots Rewired . | . . . . . Allies Hacked . | . . . . . Hacks Repelled . | . . . . . Allies | -11 -10 -10 -9 -9 -------- Run | Yrd Mat Sub Rec Scr Total Allies 1 | . 1 . . . Largest Group 1 | . 1 1 1 1 Highest-Rated Group 77 | . 60 67 67 77 Highest-Rated Ally 77 | . 60 67 67 77 Total Orders . | . . . . . Ally Attacks 18 | . 5 13 . . Total Damage 369 | . 140 151 78 . Kills 10 | . 5 5 . . Allies Corrupted . | . . . . . Allies Melted . | . . . . . Intel | -11 -10 -10 -9 -9 ------- Run | Yrd Mat Sub Rec Scr Active Infowar (turns) 1108 | . . . . 1108 Structural 1108 | . . . . 1108 Robot Analysis Total . | . . . . . Derelict Logs Recovered 4 | . . 2 . 2 Drone Launches . | . . . . . Drone Recoveries . | . . . . . Exploration | -11 -10 -10 -9 -9 ------------- Run | Yrd Mat Sub Rec Scr Turns Passed 8002 | . 784 3901 492 2825 Spaces Moved 5527 | 1 598 2666 267 1995 Core . | . . . . . Treads 1241 | . . . . 1241 Legs 2208 | 1 598 1500 109 . Wheels 2078 | . . 1166 158 754 Hover . | . . . . . Flight . | . . . . . Fastest Speed 70 | 120 120 90 100 70 Average Speed 131 | 120 120 126 138 139 Slowest Speed 260 | 120 120 260 190 170 Overloaded Moves . | . . . . . Propulsion Burnouts . | . . . . . Robots Hopped . | . . . . . Potential Cave-ins . | . . . . . Cave-ins Triggered . | . . . . . Exploration Rate (%) 56 | 2 66 89 37 88 Regions Visited 4 Branch Regions 3 Pre-discovered Areas . | . . . . . Known Exits Taken . | . . . . . Unknown Exits Taken 4 | 1 1 1 1 . Scrap Searched 24 | . . 14 . 10 Spaces Dug 16 | . . 16 . . Terrain Destroyed 31 | . . 31 . . Melee 1 | . . 1 . . Projectile . | . . . . . AOE 30 | . . 30 . . Terrain Rammed . | . . . . . Walls Destroyed . | . . . . . Machines Disabled . | . . . . . Actions | -11 -10 -10 -9 -9 --------- Run | Yrd Mat Sub Rec Scr Total 6070 | . 643 3026 366 2035 Wait 288 | . 12 199 77 . Move 5523 | . 597 2665 266 1995 Hop . | . . . . . Pick Up 23 | . 7 10 1 5 Fast Attach 28 | . 4 9 5 10 Attach 8 | . . 8 . . Detach 1 | . . . . 1 Swap 32 | . 2 25 1 4 Drop 49 | . 8 16 5 20 Fire 94 | . 11 72 11 . Melee 22 | . . 22 . . Ram . | . . . . . Kick 2 | . 2 . . . Crush . | . . . . . Escape Stasis . | . . . . . Rewire . | . . . . . Trap . | . . . . . Miscellaneous . | . . . . . Route ------- -11/Scrapyard -10/Materials (discovered 4 exits: [*Mat x2] / [*Min] / [*Sub]) -10/Subcaves (discovered 3 exits: *Mat x2 / *Rec) -9/Recycling (discovered 2 exits: [*Fac] / *Scr) -9/Scraptown (discovered 1 exit: [*Fac]) History --------- Turn | Location | Event 1 | -11/Scrapyard | Discovered new exit (range 0) 1 | -11/Scrapyard | Entered Materials 23 | -10/Materials | Discovered new exit (range 16) 314 | -10/Materials | Build established: Mutant 440 | -10/Materials | Discovered new exit (range 13) 517 | -10/Materials | Discovered new exit (range 16) 769 | -10/Materials | Discovered new exit (range 8) 785 | -10/Materials | Entered Subcaves 786 | -10/Subcaves | Approached by a straggling Scientist 795 | -10/Subcaves | Shifting Twisted Machinery released Sub. Beam Cannon 801 | -10/Subcaves | Learned Materials garrison access intel 835 | -10/Subcaves | Shifting Twisted Machinery released Mak. Kinetic Plating 1027 | -10/Subcaves | Discovered new exit (range 15) 1163 | -10/Subcaves | A Subdweller sparked back to life 1163 | -10/Subcaves | A Subdweller sparked back to life 1163 | -10/Subcaves | A Subdweller sparked back to life 1180 | -10/Subcaves | Found Prototype Flight Unit 1243 | -10/Subcaves | Shifting Twisted Machinery released Sub. Optics 1789 | -10/Subcaves | Core integrity fell below 50% 2340 | -10/Subcaves | Identified exit to Materials 2360 | -10/Subcaves | Discovered exit to Materials (range 16) 2852 | -10/Subcaves | Build established: Derelict-Mutant 2907 | -10/Subcaves | Ambushed by Subdwellers from Twisted Machinery 3284 | -10/Subcaves | Build established: Scavenger-Mutant 4007 | -10/Subcaves | Core integrity fell below 20% 4279 | -10/Subcaves | Shifting Twisted Machinery released Flamer 4325 | -10/Subcaves | Build established: Mutant 4686 | -10/Subcaves | Entered Recycling 4765 | -9/Recycling | Discovered new exit (range 15) 5077 | -9/Recycling | Scanned before Scraplab entrance 5142 | -9/Recycling | Entered Scraplab 5150 | -9/Recycling | Discovered new exit (range 2) 5178 | -9/Recycling | Entered Scraptown 5178 | -9/Scraptown | System corruption cleaned by C-Scrubber 5190 | -9/Scraptown | Build established: Scavenger-Mutant 5411 | -9/Scraptown | Discovered new exit (range 13) 5494 | -9/Scraptown | Scanned Subdweller tech in exchange for log data 5497 | -9/Scraptown | Learned Factory terminal intel 5498 | -9/Scraptown | Learned Research security intel 5629 | -9/Scraptown | Visited TADAMA 5639 | -9/Scraptown | Visited Awakened 5666 | -9/Scraptown | Visited SPCMW 5837 | -9/Scraptown | Build established: Mutant 5886 | -9/Scraptown | Visited Junk Repository 6243 | -9/Scraptown | Visited Bundlers 6331 | -9/Scraptown | Visited Comm Corps 6395 | -9/Scraptown | Visited Cyclists 6935 | -9/Scraptown | Visited UFD Registry 6967 | -9/Scraptown | Registered with UFD as "Databack" 7001 | -9/Scraptown | Entered Cyclist Reading Room 7073 | -9/Scraptown | Build established: Derelict-Mutant 7082 | -9/Scraptown | Visited Curators Association 7155 | -9/Scraptown | Visited Scrapoid Pod Storage 7180 | -9/Scraptown | Visited LU-1G1's Boring Crew 7269 | -9/Scraptown | Delivered Scrap Shield to a Scientist 7414 | -9/Scraptown | Visited Chapter 10 7474 | -9/Scraptown | Visited Derelict Rescue Squad 7490 | -9/Scraptown | Found DRS Beacon 7522 | -9/Scraptown | Visited Scrap Suit Storage 7559 | -9/Scraptown | Visited A0-MCA Data Center 7569 | -9/Scraptown | Given a B+ rating by A0-MCA 7609 | -9/Scraptown | Build established: Mutant 7618 | -9/Scraptown | Visited DA-N13 Charitable Foundation 7720 | -9/Scraptown | Visited Science Testing Area 7759 | -9/Scraptown | Visited Modified Component R&D 7876 | -9/Scraptown | Found Scrap Suit 8003 | -9/Scraptown | Self-destructed Last Messages --------------- 07875_ Dropped Lgt. Armor Plating. 07876_ Dropped Lrg. Storage Unit. 07876_ Acquired Scrap Suit. 07945_ Dropped Imp. Ion Engine. Player 2: "I'll give you 500 Matter for your Arm. Treads. NOT! Piece of junk... who'd want that thing." 07977_ Dropped Spk. Treads. 07978_ Dropped Arm. Treads. 07978_ Acquired Ovr. Huge Scrapsphere. 07986_ Dropped Lgt. Cannon. 07987_ Scrap Suit secures Lgt. Cannon. 07987_ Dropped Battle Cannon. 07988_ Dropped Lgt. Cannon. 07989_ Player 2 drops Lgt. Treads. 07989_ Player 2 removes Spk. Treads. 07989_ Player 2 attaches Arm. Treads. 07998_ Player 2 drops Unknown Flight Unit. 07998_ Player 2 removes Ovr. Medium Treads. 07998_ Player 2 attaches Spk. Treads. Map ----- +----------------------------------------------------+ | | | ?????????????????????????????????????????????????? | | ?????????????????????????????????????????????????? | | ?????????????????????????????????????????????????? | | ##########???????????????????????????????????????? | | """""""""#???????????????????????????????????????? | | " "#???????????????????????????????????????? | | """ "#???????????????????????????????????????? | | " "" "#???????????????????????????????????????? | | " " "#???????????????????????????????????????? | | " "#???????????????????????????????????????? | | "" """"""#???????????????????????????????????????? | | #???????????????????????????????????????? | | #???????????????????????????????????????? | | #???????????????????????????????????????? | | """"#####???????????????????????????????????????? | | *]%"#???????????????????????????????????????????? | | [""#???????????????????????????????????????????? | | """#???????????????????????????????????????????? | | """#???????????#############???????????????????? | | """""#???????????#############???????????????????? | | ######???????????##"""""""""""???????????????????? | | ?#######?????????##"""""""# ?????????????????????? | | ########?????????##" " = =# ##############????? | | ###"""#"?????????##"=c = #+#################????? | | #X # ?????????##"[ @ """### ####### | | #" #"?????????##" @ ="### ####### | | #X #"?????????##""""" ""### ##***## | | #"""# #""""##????######" "### ##==]## | | ##### #######????##""""" X### ##*%]!] | | #" "##????## = = ]] #### ##[[!]= | | #" X##????## "### ##!| != | | #" "##????## "### ##*![=* | | # ####??######### ########### ########### | | ######### #####??######### ########### ########### | | ##?????##"""" """"""""""" """"""""""" | | ##?????##" * | | ##?????##" | | ##?????##" | | ##?????##" | | #### ##?????##" | | # ##????""" """""""""""""""""""""" | | # ##????""" """""""""""""""""""""" | | ""# ##????""" ""###### ############ | | !%"# ##????""" ""# ####### | | ""# #####"""" ""# ?? ????????? | | # ###"#"?"" ""# ? "" "" ????????? | | ""# ""#"#"?"" ""????" ""???###### | | "# """"#"?"" ""????? ?????###### | | ""# ""####?##" ""????? "" ????? | +----------------------------------------------------+ Best States ------------- Heat Dissipation 25 Coolant Potential 50 Energy Generation 16 Energy Capacity 290 Matter Stores 300 Matter Capacity 300 Sight Range 16 Terrain Scan Density 10 Armor Coverage 150 Resistance: KI 30 Resistance: TH 20 Resistance: EX 20 Resistance: EM 20 Resistance: I 20 Resistance: S 20 Resistance: P 20 Evasion (%) 55 Recoil Reduction 2 Offensive Hacking 10 Item Schematics ----------------- None Robot Schematics ------------------ None Fabricated ------------ Nothing Repaired ---------- Nothing Alien Tech Used ----------------- None Achievements -------------- None Challenges ------------ None Player 2 | -11 -10 -10 -9 -9 ---------- Run | Yrd Mat Sub Rec Scr Slots Evolved . | . . . . . Power . | . . . . . Propulsion . | . . . . . Utility . | . . . . . Weapon . | . . . . . Parts Attached 21 | . 8 8 . 5 Parts Lost . | . . . . . Damage Taken 228 | . 65 163 . . Core 17 | . . 17 . . Player 2/Cogmind (%) 7 | . . 7 . . Absorbed by Shields . | . . . . . Damage Inflicted 369 | . 140 151 78 . Player 2/Cogmind (%) 11 | . 37 6 20 . Combat Hostiles Destroyed 8 | . 4 4 . . Player 2/Cogmind (%) 23 | . 44 16 . . Game ------ Seed SpectralPotentialStripper Manual? 0 Play Time 00:43:26 Cumulative 448.5 hours Start 2025.08.23 @ 12:58:15 End 2025.08.24 @ 16:33:10 Sessions 5 Manual Loads 0 Difficulty Adventurer Special Mode AFD2020/Player2 Game No. 259 Rogue 257 Adventurer 2 Explorer 0 Win Type - Total 11 Types 10/0/1/0/0/0/0/0/0/0 Lore% 76 Gallery% 68 Achievement% 55 Wizard Run 0 Options --------- Layout 1 ASCII 0 Keyboard 0 Movement Numpad Keybinds 0 Fullscreen 1 Font 24/Smallcaps Map View 50x35 Zoom Use 0% Tactical HUD 1 Map Filters NONE Filters NONE Steam 1 RUN: 9de0ea73-bddb-4da6-a97a-8cc68d6b8f81